{"text_format":"3","workbook":"xlsx","n_sheets":3,"sheets":["Storie","Consegne","Pubblicazioni"],"not_rendered":{"images":1,"defined_names":2},"read":"whole","date_system":"1900"}

{"sheet":"Storie","index":0,"n_rows":10,"n_cols":7,"rows_kept":10}
[{"$nulls":6}," "]
[]
[]
[null,"Titolo","Stato","Conteggio parole","Genere","Riepilogo"]
[null,"Chiamata al calar della notte","Completata",5710,"Racconto breve","Storia avvincente su un detective in incognito."]
[null,"La carta da parati blu","Completata",4525,"Racconto breve","Storia motivazionale riguardante la progettazione di una casa."]
[null,"L'amore dopo l'amore","Completata",438,"Post di blog","Una storia d'amore sulle seconde possibilità."]
[null,"L'abito più pericoloso","In corso",550,"Promozione","Pezzo promozionale per la progettazione di una linea di camicie."]
[null,"La missione leggendaria","Completata",520,"Post di blog","Racconto breve di una missione nello spazio."]
[null,"Le finali del trimestre","Completata",290,"Post di blog","Articolo sportivo sulle finali del torneo."]

{"sheet":"Consegne","index":1,"n_rows":11,"n_cols":8,"rows_kept":11}
[{"$nulls":7}," "]
[]
[]
[null,"Data \ndi consegna","Titolo della storia","Nome della pubblicazione","Stato","Data \ndi pubblicazione","Pagamento \nricevuto"]
[null,{"$f":"TODAY()-21","v":"2022-07-22"},"Chiamata al calar della notte","Rivista Giovani di spirito","Rifiutata"]
[null,{"$f":"TODAY()-9","v":"2022-08-03"},"La carta da parati blu","Rivista Giovani di spirito","Accettata",{"$f":"TODAY()-4","v":"2022-08-08"},{"v":300,"d":"€ 300.00 "}]
[null,{"$f":"TODAY()-9","v":"2022-08-03"},"La carta da parati blu","Motivi digitali","Accettata",{"$f":"TODAY()-2","v":"2022-08-10"},{"v":350,"d":"€ 350.00 "}]
[null,{"$f":"TODAY()-7","v":"2022-08-05"},"L'amore dopo l'amore","Prendi questo!","Consegna"]
[null,{"$f":"TODAY()-6","v":"2022-08-06"},"La missione leggendaria","Motivi digitali","Accettata",{"$f":"TODAY()-4","v":"2022-08-08"},{"v":150,"d":"€ 150.00 "}]
[null,{"$f":"TODAY()-6","v":"2022-08-06"},"Le finali del trimestre","Prendi questo!","Accettata",{"$f":"TODAY()-3","v":"2022-08-09"},{"v":100,"d":"€ 100.00 "}]
[null,{"$f":"TODAY()-6","v":"2022-08-06"},"Le finali del trimestre","Motivi digitali","Consegna"]

{"sheet":"Pubblicazioni","index":2,"n_rows":7,"n_cols":8,"rows_kept":7}
[{"$nulls":7}," "]
[]
[]
[null,"Nome","Tipo","Scadenze","Consegne \ntotali","Accettazioni\ntotali","Utili \ntotali"]
[null,"Motivi digitali","Altro","Due settimane dopo la richiesta",{"$f":"COUNTIF(Tabella_consegne[Nome della pubblicazione],Tabella_pubblicazioni[[#This Row],[Nome]])","v":3},{"$f":"COUNTIFS(Tabella_consegne[Nome della pubblicazione],Tabella_pubblicazioni[[#This Row],[Nome]],Tabella_consegne[Stato],\"Accettata\")","v":2},{"$f":"SUMIF(Tabella_consegne[Nome della pubblicazione],Tabella_pubblicazioni[[#This Row],[Nome]],Tabella_consegne[Pagamento \nricevuto])","v":{"v":500,"d":"€ 500.00 "}}]
[null,"Rivista Giovani di spirito","SFWA","Ogni 3 del mese",{"$f":"COUNTIF(Tabella_consegne[Nome della pubblicazione],Tabella_pubblicazioni[[#This Row],[Nome]])","v":2},{"$f":"COUNTIFS(Tabella_consegne[Nome della pubblicazione],Tabella_pubblicazioni[[#This Row],[Nome]],Tabella_consegne[Stato],\"Accettata\")","v":1},{"$f":"SUMIF(Tabella_consegne[Nome della pubblicazione],Tabella_pubblicazioni[[#This Row],[Nome]],Tabella_consegne[Pagamento \nricevuto])","v":{"v":300,"d":"€ 300.00 "}}]
[null,"Prendi questo!","SFWA","Ogni lunedì",{"$f":"COUNTIF(Tabella_consegne[Nome della pubblicazione],Tabella_pubblicazioni[[#This Row],[Nome]])","v":2},{"$f":"COUNTIFS(Tabella_consegne[Nome della pubblicazione],Tabella_pubblicazioni[[#This Row],[Nome]],Tabella_consegne[Stato],\"Accettata\")","v":1},{"$f":"SUMIF(Tabella_consegne[Nome della pubblicazione],Tabella_pubblicazioni[[#This Row],[Nome]],Tabella_consegne[Pagamento \nricevuto])","v":{"v":100,"d":"€ 100.00 "}}]